bitfinex/quotes_SOLUSD_20251119
["timestamp","ask_amount","ask_price","bid_price","bid_amount"]
[1763563099403,1.8,137.44,137.37,18.78096]
[1763563099574,10.26280271,137.43,137.38,10.26280271]
[1763563099911,0.72,137.53,137.42,10.26280271]
[1763563100080,0.72,137.56,137.48,10.26280271]
[1763563100279,10.26280271,137.5,137.45,10.26280271]
[1763563100480,10.26280271,137.48,137.44,18.12096]
[1763563100698,1.8,137.47,137.43,10.26280271]
[1763563100902,1.8,137.47,137.43,10.96280271]
[1763563101196,1.8,137.47,137.43,10.26280271]
[1763563101401,1.8,137.47,137.43,0.7]
[1763563101589,1.8,137.47,137.43,28.38376271]
[1763563101792,1.8,137.47,137.44,10.26280271]
[1763563101997,10.26280271,137.45,137.39,0.7]
[1763563102202,10.26280271,137.45,137.4,10.26280271]
[1763563102375,10.26280271,137.44,137.38,7.27906111]
[1763563102571,10.26280271,137.43,137.38,0.7]
[1763563102772,10.26280271,137.41,137.35,0.7]
[1763563102987,10.26280271,137.39,137.35,0.7]
[1763563103166,10.26280271,137.39,137.31,9.78882769]
[1763563103167,10.26280271,137.37,137.31,0.7]
[1763563103387,12.06280271,137.38,137.26,1.8]
[1763563103619,1.8,137.38,137.35,10.26280271]
[1763563103813,1.8,137.38,137.34,10.26280271]
[1763563104025,1.8,137.38,137.35,0.7]
[1763563104206,1.8,137.38,137.34,10.26280271]
[1763563104403,1.8,137.38,137.36,10.26280271]
[1763563104591,0.66,137.48,137.37,28.38376271]
[1763563104795,10.26280271,137.42,137.37,18.12096]
[1763563105028,12.06280271,137.42,137.37,28.38376271]
[1763563105183,12.06280271,137.42,137.37,29.09376271]
[1763563105388,1.8,137.42,137.37,29.09376271]
[1763563105618,1.8,137.42,137.38,0.71]
[1763563105787,1.8,137.42,137.4,10.26280271]
[1763563105986,1.8,137.42,137.39,7.27842585]
[1763563106213,1.8,137.42,137.38,7.9889516]
[1763563106439,1.8,137.42,137.38,0.71]
[1763563106592,10.26280271,137.41,137.37,28.38376271]
[1763563106920,0.66,137.45,137.39,6.13679349]
[1763563107129,6.13679349,137.43,137.38,6.13679349]
[1763563107292,2.46,137.44,137.38,6.13679349]
[1763563107486,1.8,137.44,137.39,6.13679349]
[1763563107797,6.13679349,137.43,137.38,0.71]
[1763563107997,6.13679349,137.45,137.4,6.13679349]
[1763563108201,1.8,137.44,137.41,6.13679349]
[1763563108615,1.8,137.44,137.4,6.13679349]
[1763563109004,1.8,137.44,137.4,6.84679349]
[1763563109205,1.8,137.44,137.4,6.13679349]
[1763563109531,1.8,137.44,137.41,0.71]
[1763563109901,1.8,137.44,137.43,6.13679349]
[1763563110219,7.93679349,137.48,137.42,7.27674899]
[1763563110426,1.8,137.48,137.42,7.27674899]
[1763563110732,1.8,137.48,137.43,0.71]
[1763563110962,6.79679349,137.47,137.41,7.277444]
[1763563111264,6.13679349,137.46,137.4,18.83096]
[1763563111420,6.13679349,137.45,137.4,24.25775349]
[1763563111619,6.13679349,137.45,137.4,6.13679349]
[1763563111849,6.13679349,137.44,137.39,6.13679349]
[1763563112055,6.13679349,137.44,137.38,0.71]
[1763563112265,6.13679349,137.42,137.35,0.71]
[1763563112553,6.13679349,137.39,137.34,6.13679349]
[1763563112740,7.93679349,137.38,137.33,6.84679349]
[1763563112947,1.8,137.38,137.34,6.13679349]
[1763563113151,6.13679349,137.37,137.31,17.07133358]
[1763563113368,6.13679349,137.37,137.33,0.71]
[1763563113532,7.93679349,137.38,137.33,6.84679349]
[1763563113721,6.13679349,137.37,137.33,6.84679349]
[1763563113923,6.13679349,137.37,137.33,0.71]
[1763563114238,6.13679349,137.35,137.29,0.71]
[1763563114448,0.66,137.36,137.29,6.84679349]
[1763563114449,6.13679349,137.34,137.29,6.84679349]
[1763563114777,0.66,137.36,137.23,1.99999999]
[1763563114778,7.93679349,137.33,137.28,6.13679349]
[1763563114939,6.13679349,137.31,137.26,0.71]
[1763563115250,1.8,137.33,137.27,24.25775349]
[1763563115485,1.8,137.33,137.23,1.8]
[1763563115486,6.13679349,137.31,137.19,0.7289161]
[1763563115631,6.13679349,137.29,137.24,6.13679349]
[1763563115840,6.13679349,137.3,137.23,0.71]
[1763563116042,0.66,137.32,137.24,6.13679349]
[1763563116043,6.13679349,137.29,137.24,6.13679349]
[1763563116340,1.8,137.28,137.23,18.12096]
[1763563116571,1.8,137.28,137.27,18.12096]
[1763563116871,1.8,137.28,137.2,0.71]
[1763563116872,0.66,137.27,137.2,0.71]
[1763563117180,6.13679349,137.23,137.18,0.2]
[1763563117389,1.8,137.22,137.18,0.2]
[1763563117741,1.8,137.22,137.18,6.33679349]
[1763563117938,1.8,137.22,137.18,18.32096]
[1763563118141,1.8,137.22,137.18,0.2]
[1763563118362,1.8,137.22,137.18,14.33627639]
[1763563118664,7.93679349,137.22,137.18,0.2]
[1763563118872,6.13679349,137.2,137.18,0.2]
[1763563119042,6.13679349,137.19,137.18,0.04]
[1763563119251,6.13679349,137.19,137.16,0.2]
[1763563119456,11.58882769,137.22,137.16,0.2]
[1763563119457,9.78882769,137.21,137.16,0.2]
[1763563119663,6.13679349,137.17,137.16,0.2]
[1763563119958,7.93679349,137.17,137.16,0.2]
[1763563120159,1.8,137.17,137.16,0.2]
[1763563120344,1.8,137.17,137.16,0.91]
[1763563120548,1.8,137.17,137.16,7.49075532]
[1763563120803,1.8,137.17,137.14,18.12096]
[1763563121071,6.13679349,137.15,137.12,0.2]
[1763563121241,6.13679349,137.13,137.12,0.2]
[1763563121591,1.8,137.14,137.12,0.91]
[1763563121888,1.8,137.15,137.12,14.33924263]
[1763563122113,1.8,137.15,137.13,0.71]
[1763563122380,1.8,137.15,137.12,0.2]
[1763563122675,1.8,137.15,137.12,0.91]
[1763563123066,6.13679349,137.14,137.12,0.2]
[1763563123368,1.8,137.15,137.12,0.2]
[1763563123745,6.13679349,137.13,137.12,0.2]
[1763563124268,1.8,137.15,137.12,0.2]
[1763563124642,6.13679349,137.14,137.12,0.2]
[1763563125088,6.13679349,137.13,137.12,0.2]
[1763563125394,15.92562118,137.13,137.12,0.2]
[1763563125674,18.12096,137.1,137.03,0.91]
[1763563125894,6.13679349,137.08,137.03,7.04679349]
[1763563126194,6.13679349,137.08,137.03,6.33679349]
[1763563126390,19.92096,137.13,137.06,6.84679349]
[1763563126684,19.92096,137.13,137.06,0.71]
[1763563126890,6.13679349,137.1,137.06,0.71]
[1763563127089,19.92096,137.13,137.06,6.84679349]
[1763563127282,19.92096,137.13,137.06,0.71]
[1763563127472,9.78882769,137.16,137.08,6.13679349]
[1763563127676,1.8,137.12,137.09,6.13679349]
[1763563127883,1.8,137.13,137.11,6.13679349]
[1763563128179,7.93679349,137.14,137.1,0.71]
[1763563129101,1.8,137.14,137.1,14.14072703]
[1763563129270,1.8,137.14,137.1,6.84679349]
[1763563129470,7.93679349,137.14,137.11,0.71]
[1763563129669,1.8,137.14,137.11,0.71]
[1763563130387,7.93679349,137.14,137.11,0.71]
[1763563130774,1.8,137.14,137.11,0.71]
[1763563131171,6.13679349,137.12,137.06,6.85679349]
[1763563131499,6.13679349,137.11,137.06,0.72]
[1763563131791,1.8,137.1,137.07,6.85679349]
[1763563131966,1.8,137.12,137.09,6.13679349]
[1763563132168,1.8,137.12,137.1,6.13679349]
[1763563132382,1.8,137.12,137.11,0.72]
[1763563132891,1.8,137.17,137.11,6.85679349]
[1763563133072,6.13679349,137.15,137.09,24.97775349]
[1763563133273,6.13679349,137.15,137.1,0.72]
[1763563134002,19.92096,137.17,137.1,0.72]
[1763563134003,6.13679349,137.14,137.1,0.72]
[1763563134201,6.13679349,137.11,137.05,0.92]
[1763563134404,1.8,137.1,137.06,0.72]
[1763563134609,7.93679349,137.1,137.06,0.72]
[1763563134784,1.8,137.14,137.09,6.13679349]
[1763563134988,7.93679349,137.14,137.1,0.72]
[1763563135182,6.13679349,137.13,137.1,0.72]
[1763563135380,6.13679349,137.12,137.07,0.72]
[1763563135584,6.13679349,137.12,137.08,0.72]
[1763563136596,6.13679349,137.1,137.05,7.05679349]
[1763563136781,1.8,137.09,137.06,0.72]
[1763563137200,1.8,137.09,137.05,0.2]
[1763563137387,1.8,137.09,137.05,0.92]
[1763563137388,6.13679349,137.08,137.05,0.92]
[1763563138720,7.93679349,137.09,137.05,0.92]
[1763563138892,6.13679349,137.08,137.06,2.0]
[1763563139095,1.8,137.09,137.06,2.72]
[1763563139417,1.8,137.09,137.07,0.72]
[1763563139911,1.8,137.09,137.06,2.0]
[1763563140315,6.13679349,137.12,137.07,14.15206874]
[1763563140620,18.12096,137.13,137.07,0.72]
[1763563140621,6.13679349,137.11,137.07,0.72]
[1763563140815,6.13679349,137.12,137.07,6.85679349]
[1763563141048,6.13679349,137.12,137.08,0.72]
[1763563141350,6.13679349,137.11,137.08,0.72]
[1763563141556,6.13679349,137.09,137.06,2.0]
[1763563141759,1.8,137.08,137.06,2.0]
[1763563142051,6.13679349,137.07,137.06,2.0]
[1763563142647,18.12096,137.04,137.03,0.2]
[1763563142852,35.84658118,137.04,137.03,0.2]
[1763563143066,9.78882769,137.03,137.0,0.2]
[1763563143217,35.84658118,137.04,137.0,0.2]
[1763563143218,34.04658118,137.01,137.0,0.2]
[1763563143418,27.90978769,137.01,137.0,0.2]
[1763563143630,24.25775349,137.01,137.0,0.2]
[1763563143840,34.04658118,137.01,137.0,0.2]
[1763563144249,18.12096,137.07,137.0,0.2]
[1763563144455,18.12096,137.01,137.0,0.2]
[1763563144641,1.8,137.01,137.0,0.2]
[1763563144823,26.05775349,137.01,137.0,0.2]
[1763563145131,35.84658118,137.01,137.0,0.2]
[1763563145746,41.98337467,137.01,136.92,0.92]
[1763563145934,6.13679349,136.96,136.92,0.92]
[1763563146129,1.8,136.95,136.92,0.92]
[1763563146334,1.8,136.95,136.93,0.72]
[1763563146536,0.69,137.06,136.94,6.13679349]
[1763563146717,6.13679349,137.02,136.97,6.13679349]
[1763563146918,1.8,137.01,136.98,6.13679349]
[1763563147152,1.8,137.0,136.98,6.13679349]
[1763563147349,1.8,137.0,136.98,0.72]
[1763563148339,1.8,137.0,136.99,6.13679349]
[1763563148545,1.8,137.04,136.99,6.13679349]
[1763563148745,1.8,137.04,137.0,6.85679349]
[1763563148953,1.8,137.04,137.0,0.72]
[1763563149129,1.8,137.04,137.01,6.85679349]
[1763563149466,1.8,137.04,137.01,0.72]
[1763563149623,1.8,137.04,136.97,17.08959903]
[1763563149955,1.8,137.04,137.02,0.72]
[1763563150134,1.8,137.04,137.0,6.13679349]
[1763563150445,1.8,137.04,137.0,13.43589445]
[1763563150657,1.8,137.04,136.94,38.31118758]
[1763563150658,6.13679349,137.02,136.96,0.72]
[1763563150827,18.81096,137.03,136.96,0.72]
[1763563151039,6.13679349,136.97,136.92,0.2]
[1763563151223,6.13679349,136.94,136.92,0.2]
[1763563151424,7.93679349,136.94,136.92,0.2]
[1763563152347,1.8,136.94,136.92,0.92]
[1763563152538,7.93679349,136.94,136.92,0.92]
[1763563152734,7.93679349,136.94,136.92,0.2]
[1763563152939,6.13679349,136.93,136.92,0.2]
[1763563153422,1.8,136.94,136.92,0.2]
[1763563153628,6.13679349,136.93,136.92,0.2]
[1763563154123,6.82679349,136.93,136.92,0.2]
[1763563154531,6.13679349,136.93,136.92,0.2]
[1763563155248,18.12096,136.89,136.82,0.72]
[1763563155548,6.13679349,136.83,136.81,0.2]
[1763563155773,2.30992261,136.82,136.81,0.2]
[1763563155931,7.7567161,136.82,136.81,0.2]
[1763563156339,17.54554379,136.82,136.81,0.2]
[1763563156665,1.61992261,136.82,136.81,0.2]
[1763563157336,18.12096,136.84,136.81,0.92]
[1763563157532,1.8,136.83,136.81,7.05679349]
[1763563157752,1.8,136.83,136.81,0.2]
[1763563157945,1.8,136.83,136.82,0.72]
[1763563158149,1.8,136.83,136.81,0.2]
[1763563158351,1.8,136.83,136.81,7.05679349]
[1763563158554,1.8,136.83,136.82,6.13679349]
[1763563158749,1.8,136.83,136.82,0.72]
[1763563159061,1.8,136.83,136.81,13.64618043]
[1763563159263,1.8,136.83,136.81,0.2]
[1763563159447,7.93679349,136.83,136.81,0.2]
[1763563159672,1.8,136.83,136.81,0.2]
[1763563159960,1.8,136.83,136.82,0.7]
[1763563160150,1.8,136.83,136.82,6.83679349]
[1763563160354,66.41620197,137.0,136.83,7.30833881]
[1763563160355,0.66,136.93,136.83,7.30833881]
[1763563160537,11.58882769,136.92,136.84,6.13679349]
[1763563160861,6.13679349,136.89,136.84,6.83679349]
[1763563161032,24.25775349,136.89,136.84,6.83679349]
[1763563161234,1.99999999,136.96,136.84,6.83679349]
[1763563161235,0.66,136.97,136.87,6.13679349]
[1763563161436,6.13679349,136.91,136.86,6.13679349]
[1763563161635,1.8,136.91,136.87,6.13679349]
[1763563161870,1.8,136.91,136.87,6.83679349]
[1763563162079,1.8,136.91,136.88,6.83679349]
[1763563162664,1.8,136.91,136.86,7.30656362]
[1763563162870,1.8,136.91,136.88,6.13679349]
[1763563163039,1.8,136.91,136.9,6.13679349]
[1763563163238,0.66,137.01,136.9,6.83679349]
[1763563163462,6.13679349,136.99,136.94,6.13679349]
[1763563163665,6.13679349,136.98,136.91,0.7]
[1763563163849,24.25775349,136.99,136.91,0.7]
[1763563164034,1.8,137.0,136.96,6.13679349]
[1763563164453,2.49,137.0,136.94,14.11921369]
[1763563164740,8.62679349,137.0,136.95,6.13679349]
[1763563165247,6.13679349,136.98,136.93,6.13679349]
[1763563165551,0.69,136.99,136.94,6.13679349]
[1763563165748,1.8,137.0,136.95,0.68]
[1763563165749,7.93679349,137.0,136.95,0.68]
[1763563166158,1.8,137.0,136.96,6.13679349]
[1763563166469,1.8,137.0,136.97,11.49433326]
[1763563166650,1.8,137.0,136.95,7.98184223]
[1763563166651,1.8,137.0,136.98,5.35753977]
[1763563166852,1.8,137.0,136.96,6.81679349]
[1763563167052,1.8,137.0,136.98,6.13679349]
[1763563167250,1.8,137.02,136.99,5.35743003]
[1763563167550,0.69,137.01,137.0,5.35743003]
[1763563167956,6.82679349,137.01,137.0,5.35743003]
[1763563168471,6.82679349,137.01,136.96,6.13679349]
[1763563168669,1.8,137.02,136.97,6.04252224]
[1763563168841,8.13679348,137.1,136.97,6.04252224]
[1763563168842,0.69,137.11,137.01,10.30949275]
[1763563169043,0.69,137.11,136.99,18.12096]
[1763563169044,12.10949275,137.1,137.02,6.04252224]
[1763563169242,10.30949275,137.08,137.03,5.36252224]
[1763563169445,2.49,137.1,137.04,5.36252224]
[1763563169645,1.8,137.1,137.08,10.30949275]
[1763563169959,1.8,137.1,137.09,5.36252224]
[1763563170151,12.10949275,137.14,137.09,15.67201499]
[1763563170468,12.79949275,137.14,137.1,5.36252224]
[1763563170776,2.49,137.14,137.11,5.36252224]
[1763563170980,1.8,137.13,137.12,5.36252224]
[1763563171362,1.8,137.13,137.09,10.30949275]
[1763563171568,1.8,137.13,137.1,6.03809028]
[1763563171767,1.8,137.13,137.11,5.3537476]
[1763563172068,1.8,137.13,137.11,10.98949275]
[1763563172270,0.1,137.15,137.12,0.68]
[1763563172663,0.1,137.15,137.13,10.30949275]
[1763563172985,0.1,137.15,137.12,0.68]
[1763563173450,0.1,137.15,137.14,10.30949275]
[1763563173657,0.1,137.15,137.13,10.30949275]
[1763563174003,0.1,137.15,137.14,16.34550694]
[1763563174276,10.40949275,137.28,137.19,10.30949275]
[1763563174277,10.30949275,137.24,137.19,10.30949275]
[1763563174486,1.8,137.25,137.22,10.30949275]
[1763563175055,0.1,137.28,137.24,10.30949275]
[1763563175266,0.1,137.28,137.25,5.33281216]
[1763563175477,0.1,137.28,137.27,10.30949275]
[1763563175784,0.1,137.28,137.27,15.64221875]
[1763563176089,0.1,137.28,137.27,10.98949275]
[1763563176582,0.1,137.28,137.27,0.68]
[1763563176880,0.1,137.28,137.27,10.98949275]
[1763563177689,0.1,137.28,137.26,10.30949275]
[1763563177887,0.1,137.28,137.27,0.68]
[1763563178097,0.69,137.36,137.27,0.68]
[1763563178098,0.69,137.36,137.27,10.98949275]
[1763563178259,10.30949275,137.36,137.31,10.30949275]
[1763563178482,1.8,137.38,137.32,10.30949275]
[1763563178808,10.30949275,137.37,137.31,0.68]
[1763563179005,2.49,137.38,137.32,10.30949275]
[1763563179207,2.49,137.38,137.31,0.68]
[1763563179208,10.30949275,137.36,137.31,10.30949275]
[1763563179508,10.30949275,137.35,137.29,0.68]
[1763563179712,10.30949275,137.36,137.31,10.30949275]
[1763563180008,1.8,137.38,137.33,10.30949275]
[1763563180180,19.92096,137.38,137.34,10.30949275]
[1763563180510,19.92096,137.38,137.36,10.30949275]
[1763563180511,1.8,137.38,137.36,10.30949275]
[1763563180701,1.8,137.38,137.35,10.30949275]
[1763563180897,1.8,137.38,137.33,0.68]
[1763563181108,12.79949275,137.38,137.33,10.30949275]
[1763563181301,2.49,137.38,137.33,10.30949275]
[1763563181499,10.30949275,137.35,137.28,0.68]
[1763563181703,0.69,137.37,137.32,10.30949275]
[1763563182004,1.8,137.38,137.32,10.30949275]
[1763563182203,1.8,137.38,137.33,0.68]
[1763563182417,1.8,137.38,137.34,10.30949275]
[1763563182634,10.30949275,137.36,137.3,18.80096]
[1763563182921,10.30949275,137.36,137.31,10.30949275]
[1763563183090,10.30949275,137.35,137.21,1.99999999]
[1763563183287,10.30949275,137.34,137.27,0.68]
[1763563183515,10.30949275,137.34,137.29,10.30949275]
[1763563183694,9.78882769,137.37,137.31,10.30949275]
[1763563184007,10.30949275,137.35,137.31,10.30949275]
[1763563184212,10.30949275,137.33,137.28,10.30949275]
[1763563184395,1.8,137.33,137.28,10.98949275]
[1763563184717,1.8,137.33,137.25,1.8]
[1763563184718,1.8,137.33,137.3,10.30949275]
[1763563184917,10.30949275,137.31,137.24,0.68]
[1763563185215,10.30949275,137.29,137.24,0.68]
[1763563185412,1.8,137.33,137.27,10.30949275]
[1763563185716,12.10949275,137.33,137.28,10.30949275]
[1763563185900,0.69,137.32,137.25,0.68]
[1763563186108,10.30949275,137.31,137.26,10.30949275]
[1763563186421,10.30949275,137.31,137.25,0.68]
[1763563186422,19.92096,137.33,137.25,0.68]
[1763563186638,0.69,137.36,137.25,7.9659686]
[1763563186798,10.30949275,137.34,137.29,10.30949275]
[1763563186992,1.78,137.35,137.26,0.68]
[1763563187217,10.30949275,137.32,137.27,10.30949275]
[1763563187621,10.30949275,137.33,137.28,10.98949275]
[1763563187823,10.30949275,137.32,137.27,10.30949275]
[1763563188008,1.8,137.31,137.27,10.30949275]
[1763563188206,1.8,137.31,137.25,18.80096]
[1763563188207,10.30949275,137.3,137.25,10.98949275]
[1763563188429,1.8,137.31,137.27,10.30949275]
[1763563188724,1.8,137.31,137.28,10.30949275]
[1763563188931,1.8,137.31,137.27,18.12096]
[1763563189094,1.8,137.31,137.28,10.98949275]
[1763563189294,27.90978769,137.37,137.3,10.30949275]
[1763563189295,28.59978769,137.37,137.3,10.30949275]
[1763563189509,1.78,137.36,137.3,10.30949275]
[1763563189699,1.78,137.36,137.31,0.65]
[1763563189917,10.30949275,137.34,137.29,18.12096]
[1763563190223,10.30949275,137.35,137.3,0.65]
[1763563190422,10.30949275,137.35,137.3,10.95949275]
[1763563190718,10.30949275,137.34,137.3,0.65]
[1763563190908,10.30949275,137.34,137.29,28.43045275]
[1763563191094,10.99949275,137.33,137.28,10.30949275]
[1763563191425,10.30949275,137.31,137.26,28.43045275]
[1763563191596,10.30949275,137.31,137.26,29.08045275]
[1763563191802,10.99949275,137.31,137.26,18.77096]
[1763563192011,1.78,137.32,137.23,9.78882769]
[1763563192219,10.30949275,137.29,137.24,0.65]
[1763563192520,1.78,137.28,137.24,10.30949275]
[1763563192704,12.77949275,137.28,137.23,10.30949275]
[1763563192904,12.08949275,137.28,137.23,10.95949275]
[1763563193121,12.77949275,137.28,137.23,10.95949275]
[1763563193304,12.77949275,137.28,137.2,9.78882769]
[1763563193305,10.30949275,137.26,137.22,10.30949275]
[1763563193509,12.08949275,137.28,137.23,10.30949275]
[1763563193708,10.30949275,137.26,137.21,10.95949275]
[1763563193906,1.78,137.28,137.18,9.78882769]
[1763563193907,0.69,137.27,137.18,9.78882769]
[1763563194098,9.78882769,137.26,137.18,10.30949275]
[1763563194309,10.30949275,137.23,137.18,10.30949275]
[1763563194503,1.78,137.22,137.18,10.30949275]
[1763563194805,1.78,137.22,137.18,10.95949275]
[1763563195007,1.78,137.22,137.19,10.95949275]
[1763563195228,1.78,137.22,137.18,10.30949275]
[1763563195627,1.78,137.22,137.19,0.65]
[1763563195829,1.78,137.22,137.19,10.95949275]
[1763563196297,1.78,137.22,137.19,0.65]
[1763563196737,1.78,137.22,137.19,10.95949275]
[1763563197416,10.30949275,137.21,137.16,10.95949275]
[1763563197727,2.47,137.22,137.18,28.43045275]
[1763563197728,1.78,137.22,137.18,28.43045275]
[1763563198030,10.30949275,137.2,137.17,0.65]
[1763563198404,10.30949275,137.2,137.15,10.30949275]
[1763563198828,10.30949275,137.19,137.14,10.30949275]
[1763563199010,12.08949275,137.18,137.13,36.37272007]
[1763563199205,12.08949275,137.18,137.13,7.9423076]
[1763563199417,1.78,137.18,137.14,10.95949275]
[1763563199605,1.78,137.18,137.14,0.65]
[1763563199936,12.77949275,137.18,137.13,10.30949275]
[1763563200102,12.08949275,137.18,137.13,10.30949275]
[1763563200427,10.30949275,137.16,137.11,0.65]
[1763563200634,0.69,137.17,137.08,0.2]
[1763563200844,10.30949275,137.12,137.08,7.49496891]
[1763563201050,1.78,137.12,137.09,10.30949275]
[1763563201333,10.30949275,137.11,137.08,0.2]
[1763563201710,10.30949275,137.09,137.08,0.2]
[1763563202031,1.78,137.09,137.08,0.2]
[1763563202431,9.78882769,137.16,137.08,18.45450296]
[1763563202633,1.78,137.15,137.11,10.30949275]
[1763563202843,1.78,137.15,137.08,10.50949275]
[1763563202844,2.47,137.15,137.08,10.50949275]
[1763563203156,10.30949275,137.14,137.09,10.30949275]
[1763563203309,0.69,137.21,137.13,10.30949275]
[1763563203514,1.78,137.21,137.14,0.65]
[1763563203712,2.47,137.21,137.14,0.65]
[1763563203917,10.30949275,137.16,137.1,0.65]
[1763563204214,10.30949275,137.16,137.11,18.12096]
[1763563204414,10.30949275,137.15,137.11,18.12096]
[1763563204844,1.8,137.19,137.12,10.43882769]
[1763563205018,10.30949275,137.17,137.12,0.65]
[1763563205217,2.49,137.19,137.13,10.30949275]
[1763563205413,10.30949275,137.17,137.08,0.2]
[1763563205614,10.30949275,137.14,137.08,7.4948087]
[1763563205918,1.8,137.14,137.11,10.30949275]
[1763563206132,1.8,137.14,137.13,10.30949275]
[1763563206324,1.8,137.14,137.11,18.12096]
[1763563206535,1.8,137.14,137.1,0.65]
[1763563206536,12.10949275,137.14,137.1,10.30949275]
[1763563206716,1.8,137.14,137.1,10.95949275]
[1763563206916,1.8,137.14,137.13,10.30949275]
[1763563207150,1.8,137.14,137.12,10.30949275]
[1763563207344,10.30949275,137.19,137.13,28.43045275]
[1763563207524,10.30949275,137.19,137.14,10.30949275]
[1763563207525,12.10949275,137.18,137.14,10.30949275]
[1763563207723,12.10949275,137.18,137.11,0.65]
[1763563207724,10.30949275,137.17,137.11,0.65]
[1763563207948,10.30949275,137.17,137.11,28.43045275]
[1763563207949,10.30949275,137.16,137.11,28.43045275]
[1763563208153,10.30949275,137.13,137.08,0.2]
[1763563208362,10.30949275,137.11,137.08,0.2]
[1763563208517,1.8,137.13,137.08,0.2]
[1763563208722,10.30949275,137.09,137.08,0.2]
[1763563209053,0.69,137.12,137.08,0.2]
[1763563209244,10.30949275,137.11,137.08,0.2]
[1763563209461,10.30949275,137.09,137.08,0.2]
[1763563209631,12.10949275,137.09,137.08,0.2]
[1763563209939,1.8,137.09,137.08,0.2]
[1763563210327,12.10949275,137.09,137.08,0.2]
[1763563210541,1.8,137.09,137.08,0.2]
[1763563212165,12.10949275,137.09,137.08,0.2]
[1763563212318,22.58832044,137.09,136.94,0.62709531]
[1763563212521,10.30949275,137.04,137.0,10.30949275]
[1763563212862,10.30949275,137.04,136.99,10.30949275]
[1763563213038,10.30949275,137.02,136.97,0.65]
[1763563213227,10.30949275,137.01,136.97,0.65]
[1763563213427,10.30949275,137.0,136.95,10.30949275]
[1763563213641,12.10949275,137.01,136.96,10.95949275]
[1763563214170,1.8,137.01,136.97,10.95949275]
[1763563214464,1.8,137.01,136.98,0.65]
[1763563214765,1.8,137.01,136.98,10.30949275]
[1763563214941,1.8,137.01,136.98,10.95949275]
[1763563215252,1.8,137.01,136.94,2.0]
[1763563215253,12.10949275,137.01,136.95,26.07272913]
[1763563215469,1.8,137.01,136.98,10.30949275]
[1763563215648,1.8,137.04,137.0,10.30949275]
[1763563215971,1.8,137.04,137.02,10.30949275]
[1763563216204,1.8,137.04,137.03,5.36561985]
[1763563216515,0.69,137.17,137.06,18.12096]
[1763563216713,1.8,137.16,137.07,6.01561985]
[1763563217004,10.30949275,137.14,137.09,10.30949275]
[1763563217221,10.30949275,137.12,137.1,5.36561985]
[1763563217429,12.10949275,137.11,137.05,18.12096]
[1763563217574,1.8,137.1,137.06,15.66976923]
[1763563217775,1.8,137.1,137.07,5.36027648]
[1763563218008,12.79949275,137.1,137.05,18.12096]
[1763563218177,12.10949275,137.1,137.05,29.08045275]
[1763563218699,1.8,137.1,137.08,10.30949275]
[1763563219000,1.8,137.1,137.06,0.65]
[1763563219001,1.8,137.1,137.09,10.30949275]
[1763563219502,0.69,137.22,137.09,10.95949275]
[1763563219683,12.10949275,137.21,137.11,9.78882769]
[1763563219902,12.10949275,137.21,137.13,28.43045275]
[1763563219903,10.30949275,137.18,137.13,28.43045275]
[1763563220091,10.30949275,137.16,137.12,10.30949275]
[1763563220609,12.10949275,137.17,137.12,11.01949275]
[1763563220810,1.8,137.17,137.12,11.01949275]
[1763563221025,10.30949275,137.15,137.1,28.43045275]
[1763563221195,1.8,137.17,137.1,11.01949275]
[1763563221392,10.30949275,137.15,137.1,11.01949275]
[1763563221718,2.5,137.17,137.06,9.78882769]